lending/lending_fUSD_20250418
["ID","MTS","AMOUNT","RATE_DAILY","PERIOD"]
[358360660,1744992425125,-250.0,0.00019351,2]
[358360661,1744992425147,-722.39873431,0.000194,2]
[358360662,1744992426848,-407.98264617,0.000194,2]
[358360663,1744992427080,-279.23027952,0.000194,2]
[358360664,1744992427102,-109.52668687,0.000195,2]
[358360665,1744992427124,-300.0,0.00019599,2]
[358360666,1744992427146,-2484.31411292,0.000196,2]
[358360667,1744992427168,-222.68641699,0.000196,2]
[358360668,1744992427189,-300.0,0.00019899,2]
[358360669,1744992427211,-550.0,0.00019899,2]
[358360670,1744992427232,-696.09265194,0.000199,2]
[358360671,1744992432187,-192.44191594,0.00019302,2]
[358360672,1744992434726,-189.27754714,0.00019302,2]
[358360673,1744992446151,-215.56610093,0.00019302,2]
[358360674,1744992451106,-62.93319599,0.00019302,2]
[358360675,1744992451128,-1355.34516357,0.000194,2]
[358360676,1744992451150,-1355.34516356,0.000195,2]
[358360677,1744992451172,-1754.88284806,0.000199,2]
[358360678,1744992451193,-1148.7752,0.000199,2]
[358360679,1744992451215,-712.36942902,0.000199,2]
[358360680,1744992451237,-4412.91425318,0.000199,2]
[358360681,1744992543300,175.25,0.00018141,2]
[358360682,1744992551103,-222.68641699,0.000198,2]
[358360683,1744992551125,-300.0,0.00019899,2]
[358360684,1744992551149,-300.0,0.00019899,2]
[358360685,1744992551169,-1931.64485689,0.000199,2]
[358360686,1744992604926,-250.0,0.0001988,2]
[358360710,1744992631555,-233.37381586,0.0001988,2]
[358360713,1744992631565,-300.0,0.00019899,2]
[358360715,1744992631575,-10531.76778993,0.000199,2]
[358360717,1744992631585,-20395.12730256,0.000199,2]
[358360718,1744992631674,-13876.04199744,0.000199,2]
[358360719,1744992631684,-23733.6797,0.000199,2]
[358360720,1744992631694,-10737.5667,0.000199,2]
[358360721,1744992631704,-521.99058857,0.000199,2]
[358360722,1744992631714,-29627.1607,0.000199,2]
[358360723,1744992631723,-8328.8794,0.000199,2]
[358360724,1744992631733,-250.0,0.00019936,2]
[358360725,1744992631743,-273.21514229,0.00019973,2]
[358360987,1744992637828,-641.1324861,0.000199,2]
[358360988,1744992637837,-234.4946827,0.00019973,2]
[358360989,1744992637851,-500.0,0.00019973,2]
[358360990,1744992637860,-98.58891364,0.00019973,2]
[358360991,1744992637870,-401.41108636,0.00019973,2]
[358360992,1744992637878,-630.79885609,0.00019973,2]
[358360993,1744992637887,-500.0,0.00019973,2]
[358360994,1744992637895,-500.0,0.00019973,2]
[358360995,1744992637902,-500.0,0.00019973,2]
[358360996,1744992637910,-36.77153388,0.00019973,2]
[358360997,1744992637922,-463.22846612,0.00019973,2]
[358360998,1744992637931,-2006.36995552,0.0001999,2]
[358360999,1744992637942,-263.87137854,0.0001999,2]
[358361000,1744992637953,-1454.24614478,0.0001999,2]
[358361001,1744992637969,-548.35263034,0.0001999,2]
[358361002,1744992637981,-736.33283259,0.0001999,2]
[358361003,1744992637993,-1333.79158089,0.0001999,2]
[358361004,1744992638005,-1840.57138119,0.0001999,2]
[358361005,1744992638016,-326.51682463,0.0001999,2]
[358361006,1744992638027,-4315.16040471,0.0001999,2]
[358361013,1744992639826,-1342.39977091,0.0001999,2]
[358361014,1744992639838,-709.3832573,0.0001999,2]
[358361015,1744992639851,-870.99943211,0.0001999,2]
[358361016,1744992639886,-340.99398038,0.0001999,2]
[358361017,1744992640169,-0.00865008,0.0001999,2]
[358361018,1744992640189,-868.64923324,0.0001999,2]
[358361022,1744992642990,-2973.72038314,0.0001999,2]
[358361024,1744992643002,-121685.43758674,0.0002,2]
[358361054,1744992643298,-53.97640137,0.0002,2]
[358361063,1744992644981,-7.63062962,0.0002,2]
[358361076,1744992645661,-223027.92276543,0.0002,2]
[358361084,1744992645732,-3345.98631909,0.0002,2]
[358361085,1744992645745,-694.55619996,0.0002,2]
[358361087,1744992645757,-402.29190418,0.0002,2]
[358361092,1744992645803,-4221.0,0.0002,2]
[358361095,1744992645815,-851.9775012,0.0002,2]
[358361105,1744992646072,-358.39205806,0.0002,2]
[358361106,1744992646084,-18402.17,0.0002,2]
[358361107,1744992646135,-269.47166589,0.0002,2]
[358361111,1744992753864,-203.0406,0.0001989,2]
[358361112,1744992753891,-93.42127106,0.0001989,2]
[358361114,1744992800148,171053.0,0.00047975,30]
[358361115,1744992945255,1000.0,0.00047975,30]
[358361116,1744993064986,150.0,0.00047975,30]
[358361117,1744993083157,-151.43131926,0.0001989,2]
[358361118,1744993092507,152.23,0.00027425,30]
[358361119,1744993280006,164.34,0.00031348,120]
[358361121,1744993556601,4661.32352004,0.00047972,30]
[358361123,1744993591428,-354.37662494,0.000198,2]
[358361124,1744993623974,300.0,0.000199,7]
[358361125,1744993638147,250.0,0.00017,2]
[358361126,1744993639244,300.0,0.00019,2]
[358361127,1744993640278,-70.85329676,0.000198,2]
[358361128,1744993640299,-250.0,0.00019843,2]
[358361129,1744993640320,-307.71988463,0.0001989,2]
[358361130,1744993641761,-151.87998897,0.0001989,2]
[358361131,1744993642087,-960.90429438,0.0001989,2]
[358361132,1744993644152,-152.5244417,0.0001989,2]
[358361133,1744993644172,-300.0,0.00019899,2]
[358361134,1744993644194,-300.0,0.00019899,2]
[358361135,1744993644217,-300.0,0.00019899,2]
[358361136,1744993644237,-3010.3183,0.000199,2]
[358361137,1744993644258,-521.99058857,0.000199,2]
[358361138,1744993644278,-5814.39685424,0.000199,2]
[358361139,1744993647079,-4897.87717822,0.000199,2]
[358361140,1744993707512,-156.74338609,0.000198,2]
[358361142,1744993713209,-87.33948741,0.000198,2]
[358361144,1744993713240,-244.08287349,0.00019843,2]
[358361145,1744993713271,-300.0,0.00019899,2]
[358361147,1744993713304,-3912.05957644,0.000199,2]
[358361149,1744993713341,-4543.48193734,0.000199,2]
[358361151,1744993713378,-4543.48193734,0.000199,2]
[358361152,1744993713418,-493.10449164,0.000199,2]
[358361153,1744993713454,-4543.48193734,0.000199,2]
[358361154,1744993719606,-244.08287349,0.00019886,2]
[358361160,1744993743642,-154.56561278,0.00019886,2]
[358361161,1744993763504,-665.56956784,0.00019886,2]
[358361162,1744993764212,-152.8072001,0.00019886,2]
[358361163,1744993766138,-2412.81331928,0.00019886,2]
[358361164,1744993766159,-891.9069,0.00019886,2]
[358361165,1744993766181,-1205.65174273,0.000199,2]
[358361166,1744993768142,-2471.64391622,0.000199,2]
[358361167,1744993800392,-186.56159628,0.00019886,2]
[358361168,1744993802408,2000.0,0.0002,4]
[358361176,1744993831733,-420.8,0.00019886,2]
[358361177,1744993831745,-242.26950372,0.00019886,2]
[358361178,1744993831755,-300.0,0.00019899,2]
[358361179,1744993831765,-300.0,0.00019899,2]
[358361180,1744993831775,-528.23242574,0.000199,2]
[358361181,1744993831839,-370.76858744,0.000199,2]
[358361182,1744993831851,-596.33500014,0.000199,2]
[358361183,1744993831899,-13373.5521177,0.000199,2]
[358361184,1744993831908,-6681.21680456,0.000199,2]
[358361185,1744993831918,-733.65784107,0.000199,2]
[358361186,1744993831927,-647.5445547,0.000199,2]
[358361187,1744993831937,-155.811591,0.000199,2]
[358361188,1744993831947,-500.0,0.00019973,2]
[358361189,1744993831956,-500.0,0.00019973,2]
[358361190,1744993831965,-500.6549931,0.00019973,2]
[358361191,1744993831975,-552.28063968,0.00019973,2]
[358361192,1744993831984,-152.25596605,0.00019973,2]
[358361193,1744993831994,-500.0,0.00019973,2]
[358361194,1744993832003,-548.82592614,0.00019973,2]
[358361196,1744993832012,-500.0,0.00019973,2]
[358361198,1744993832022,-962.3588002,0.00019985,2]
[358361200,1744993832031,-5964.9904544,0.00019986,2]
[358361202,1744993832040,-8222.03860284,0.00019986,2]
[358361215,1744993832138,-4408.04297215,0.00019986,2]
[358361243,1744993837789,-160.93902895,0.000199,2]
[358361244,1744993837798,-16649.14097107,0.00019986,2]
[358361245,1744993837810,-978.20124513,0.00019986,2]
[358361246,1744993837845,-66209.86050821,0.00019986,2]
[358361247,1744993837856,-12700.7965074,0.00019986,2]
[358361248,1744993837866,-150.53,0.0001999,2]
[358361249,1744993837876,-233.45,0.0001999,2]
[358361250,1744993837886,-233.45,0.0001999,2]
[358361251,1744993837896,-233.45,0.0001999,2]
[358361252,1744993837908,-233.45,0.0001999,2]
[358361253,1744993837918,-233.45,0.0001999,2]
[358361254,1744993837928,-233.45,0.0001999,2]
[358361255,1744993837938,-233.45,0.0001999,2]
[358361256,1744993837947,-233.45,0.0001999,2]
[358361257,1744993837956,-233.45,0.0001999,2]
[358361258,1744993837965,-233.45,0.0001999,2]
[358361259,1744993837974,-152.09289653,0.00019999,2]
[358361260,1744993837983,-183.92727904,0.00019999,2]
[358361261,1744993837992,-172.79902203,0.00019999,2]
[358361262,1744993838002,-199.91514749,0.00019999,2]
[358361263,1744993838011,-709449.68888879,0.0002,2]
[358361264,1744993838021,-1135389.54990531,0.0002,2]
[358361265,1744993838030,-2012.0,0.00020384,2]
[358361266,1744993838040,-500.0,0.00020533,2]
[358361267,1744993838049,-4000.0,0.00020803,2]
[358361268,1744993838058,-4427.72,0.00020803,2]
[358361269,1744993838068,-1000.0,0.00020803,2]
[358361270,1744993838077,-157.23,0.00020803,2]
[358361271,1744993838086,-2751.0,0.00020803,2]
[358361272,1744993838097,-491.97,0.00020898,2]
[358361273,1744993838107,-332.69,0.00020898,2]
[358361274,1744993838118,-164.34,0.00020898,2]
[358361276,1744993838128,-350.0,0.00021,2]
[358361278,1744993838138,-150.0,0.00021062,2]
[358361280,1744993838148,-179.0,0.00021096,2]
[358361282,1744993838158,-5364.0,0.00021602,2]
[358361284,1744993838168,-420.0,0.0002167,2]
[358361286,1744993838178,-1000.0,0.00021809,2]
[358361288,1744993838187,-250.0,0.00021827,2]
[358361290,1744993838197,-420.0,0.00021836,2]
[358361292,1744993838206,-250.0,0.00021875,2]
[358361294,1744993838215,-345.8,0.00021884,2]
[358361296,1744993838224,-250.0,0.0002189,2]
[358361298,1744993838233,-500.0,0.00022259,2]
[358361300,1744993838243,-500.0,0.00022259,2]
[358361301,1744993838252,-225.36064981,0.00022259,2]
[358361304,1744993838261,-647.5445547,0.00022344,2]
[358361306,1744993838270,-1933.16,0.00022374,2]
[358361308,1744993838280,-500.0,0.00022603,2]
[358361310,1744993838289,-165.36811531,0.00022629,2]
[358361312,1744993838298,-3504.19,0.000227,2]
[358361314,1744993838307,-10273.95,0.00022729,2]
[358361316,1744993838316,-23900.0,0.00022808,2]
[358361317,1744993838326,-171.6686,0.00022959,10]
[358361319,1744993838335,-220.04,0.00022982,2]
[358361321,1744993838345,-183.96,0.00022988,2]
[358361323,1744993838354,-150.0,0.00022988,5]
[358361324,1744993838363,-400.0,0.00023,2]
[358361326,1744993838372,-176.91,0.00023092,2]
[358361328,1744993838381,-1205.98,0.00023531,2]
[358361330,1744993838391,-649.4,0.00023531,2]
[358361332,1744993838401,-587.0,0.00023599,2]
[358361334,1744993838411,-500.0,0.00023725,2]
[358361336,1744993838420,-258.31,0.00023836,2]
[358361338,1744993838430,-587.0,0.00023962,2]
[358361339,1744993838439,-35091.6659839,0.00024,5]
[358361340,1744993838449,-6570.27,0.00024225,2]
[358361341,1744993838459,-250.0,0.00024275,2]
[358361342,1744993838469,-150.0,0.00024302,2]
[358361343,1744993838479,-12171.83,0.00024316,2]
[358361344,1744993838489,-1000.0,0.00024535,2]
[358361345,1744993838499,-1000.0,0.00024658,2]
[358361346,1744993838510,-10574.25771784,0.0002475,2]
[358361347,1744993838519,-647.5445547,0.00024789,2]
[358361348,1744993838529,-11619.8265522,0.000248,3]
[358361349,1744993838538,-500.0,0.00024873,2]
[358361350,1744993838548,-500.0,0.00024873,2]
[358361351,1744993838557,-500.0,0.00024873,2]
[358361352,1744993838567,-500.0,0.00024873,2]
[358361353,1744993838576,-500.0,0.00024873,2]
[358361354,1744993838586,-504.23203613,0.00024873,2]
[358361355,1744993838596,-500.0,0.00024873,2]
[358361356,1744993838605,-500.0,0.00024873,2]
[358361357,1744993838615,-500.0,0.00024873,2]
[358361358,1744993838625,-238.19731123,0.00024873,2]
[358361359,1744993838634,-500.0,0.00024873,2]
[358361360,1744993838643,-500.0,0.00024873,2]
[358361361,1744993838652,-506.74044406,0.00024873,2]
[358361362,1744993838661,-600.0,0.000249,9]
[358361363,1744993838671,-35250.022856,0.000249,3]
[358361364,1744993838680,-160.07,0.00024927,2]
[358361365,1744993838689,-450.0,0.00025,2]
[358361366,1744993838698,-1000.0,0.00025452,2]
[358361367,1744993838707,-1000.0,0.00025452,2]
[358361368,1744993838716,-1000.0,0.00025452,2]
[358361369,1744993838725,-998.26301178,0.00025452,2]
[358361370,1744993838734,-150.0,0.00025672,2]
[358361371,1744993838744,-823.0,0.00025699,2]
[358361372,1744993838753,-500.0,0.000258,2]
[358361373,1744993838761,-1000.0,0.00026013,2]
[358361374,1744993838770,-1040.16,0.00026186,2]
[358361375,1744993838779,-3504.19,0.000262,2]
[358361376,1744993838788,-823.0,0.00026295,2]
[358361377,1744993838797,-200.0,0.00026846,2]
[358361378,1744993838806,-500.0,0.00027,2]
[358361379,1744993838815,-1773.44,0.0002708,2]
[358361380,1744993838824,-1627.27,0.00027111,2]
[358361381,1744993838833,-153.05,0.00027111,2]
[358361382,1744993838843,-15551.62,0.00027111,2]
[358361383,1744993838853,-200.0,0.00027111,2]
[358361384,1744993838861,-172.09,0.00027218,2]
[358361385,1744993838871,-647.5445547,0.00027233,2]
[358361386,1744993838881,-1000.0,0.00027261,2]
[358361387,1744993838890,-1674.4,0.00027697,2]
[358361388,1744993838900,-179.8,0.00027794,2]
[358361389,1744993838910,-200.0,0.00027807,2]
[358361390,1744993838921,-161.88,0.00027925,2]
[358361391,1744993838931,-683.0,0.00027986,2]
[358361392,1744993838941,-1040.16,0.0002845,2]
[358361393,1744993838950,-2125.61,0.00028452,2]
[358361394,1744993838960,-295.71,0.00028519,2]
[358361395,1744993838970,-1152.0,0.00028855,2]
[358361396,1744993838979,-550.0,0.00029,2]
[358361397,1744993838989,-983.71282681,0.00029204,5]
[358361398,1744993838998,-647.5445547,0.00029678,2]
[358361399,1744993839008,-1000.0,0.00029987,2]
[358361400,1744993839018,-1000.27726552,0.0003,5]
[358361401,1744993839027,-152.88,0.0003,2]
[358361402,1744993839036,-3504.19,0.000301,2]
[358361403,1744993839045,-12024.58,0.0003011,2]
[358361404,1744993839054,-500.0,0.00030352,5]
[358361405,1744993839063,-449.4635361,0.00030352,5]
[358361406,1744993839073,-623.44890813,0.00030352,5]
[358361407,1744993839083,-202.33009095,0.00030352,5]
[358361408,1744993839092,-1000.0,0.00030352,5]
[358361409,1744993839101,-1000.0,0.00030352,5]
[358361410,1744993839111,-669.53381567,0.00030352,5]
[358361411,1744993839120,-1000.0,0.00030352,5]
[358361412,1744993839129,-1000.0,0.00030352,5]
[358361413,1744993839139,-1040.16,0.00030714,2]
[358361414,1744993839149,-600.0,0.00031,2]
[358361415,1744993839158,-1000.0,0.00031279,5]
[358361416,1744993839167,-1613.0,0.00031664,3]
[358361417,1744993839175,-647.5445547,0.00032122,2]
[358361418,1744993839184,-152.23,0.00032315,30]
[358361419,1744993839193,-758.46192473,0.00032362,4]
[358361420,1744993839203,-1000.0,0.00032714,2]
[358361421,1744993839213,-150.0,0.00032877,2]
[358361422,1744993839222,-182.68,0.00032877,30]
[358361423,1744993839231,-1040.16,0.00032978,2]
[358361424,1744993839240,-650.0,0.00033,2]
[358361425,1744993839250,-150.0,0.00033844,2]
[358361426,1744993839259,-449.0,0.00034472,5]
[358361427,1744993839269,-220.04,0.00034473,120]
[358361428,1744993839278,-150.0,0.00034548,10]
[358361429,1744993839287,-647.5445547,0.00034567,2]
[358361430,1744993839297,-179.8,0.00034743,2]
[358361431,1744993839306,-2258.0,0.00034746,3]
[358361432,1744993839315,-150.0,0.00034811,2]
[358361433,1744993839324,-700.0,0.00035,2]
[358361434,1744993839333,-258.31,0.00035068,2]
[358361435,1744993839342,-12999.36526256,0.0003511,30]
[358361436,1744993839351,-1040.16,0.00035242,2]
[358361437,1744993839362,-1500.0,0.00035471,5]
[358361438,1744993839373,-890.21892913,0.00035471,5]
[358361439,1744993839384,-287.48328094,0.00035471,2]
[358361440,1744993839395,-150.0,0.00035778,2]
[358361441,1744993839404,-3504.19,0.000358,14]
[358361442,1744993839416,-1602.72879698,0.00036032,5]
[358361443,1744993839429,-150.0,0.00036745,2]
[358361444,1744993839438,-750.0,0.00037,2]
[358361445,1744993839448,-647.5445547,0.00037011,2]
[358361446,1744993839457,-152.23,0.00037205,30]
[358361447,1744993839467,-1040.16,0.00037505,2]
[358361448,1744993839476,-150.0,0.00037712,2]
[358361449,1744993839486,-9999.99,0.00037873,2]
[358361450,1744993839496,-993.77,0.00037873,2]
[358361451,1744993839511,-299.99,0.00037873,30]
[358361453,1744993839520,-150.99,0.00037873,2]
[358361454,1744993839529,-323.95,0.00037873,30]
[358361456,1744993839539,-3518.19,0.00037873,2]
[358361457,1744993839549,-150.99,0.00037873,30]
[358361458,1744993839559,-15052.79,0.00037873,10]
[358361459,1744993839568,-6450.97,0.00037873,2]
[358361460,1744993839578,-3162.0,0.00038129,3]
[358361461,1744993839588,-201.96671714,0.00038356,2]
[358361462,1744993839598,-150.0,0.00038678,2]
[358361463,1744993839608,-1674.4,0.00038776,2]
[358361464,1744993839617,-800.0,0.00039,2]
[358361465,1744993839627,-2287.758,0.00039336,54]
[358361466,1744993839636,-647.5445547,0.00039456,2]
[358361467,1744993839646,-150.0,0.00039645,2]
[358361468,1744993839656,-172.9294697,0.00039726,15]
[358361469,1744993839665,-569.50303295,0.00039726,15]
[358361470,1744993839674,-569.50303295,0.00039726,15]
[358361471,1744993839683,-569.50303295,0.00039726,15]
[358361472,1744993839692,-569.50303295,0.00039726,15]
[358361473,1744993839701,-569.50303295,0.00039726,15]
[358361475,1744993839711,-569.50303295,0.00039726,15]
[358361476,1744993839720,-569.50303295,0.00039726,15]
[358361477,1744993839730,-569.50303295,0.00039726,15]
[358361478,1744993839867,-569.50303295,0.00039726,15]
[358361479,1744993839877,-569.50303295,0.00039726,15]
[358361480,1744993839887,-569.50303295,0.00039726,15]
[358361481,1744993839896,-569.50303295,0.00039726,15]
[358361482,1744993839906,-569.50303295,0.00039726,15]
[358361483,1744993839915,-569.50303295,0.00039726,15]
[358361484,1744993839924,-569.50303295,0.00039726,15]
[358361485,1744993839933,-1040.16,0.00039769,2]
[358361486,1744993839942,-246.1403021,0.000399,4]
[358361487,1744993839951,-890.63,0.0004,30]
[358361488,1744993839961,-174270.03,0.0004,30]
[358361489,1744993839970,-5336.71,0.0004,30]
[358361490,1744993839979,-7561.5824498,0.0004,10]
[358361491,1744993839988,-153.077835,0.0004,14]
[358361492,1744993839997,-151.0,0.0004,14]
[358361493,1744993840006,-151.0,0.0004,14]
[358361494,1744993840015,-151.0,0.0004,14]
[358361495,1744993840025,-151.0,0.0004,14]
[358361496,1744993840035,-446.48784,0.0004,14]
[358361497,1744993840044,-154.316881,0.0004,14]
[358361498,1744993840053,-446.48784,0.0004,14]
[358361499,1744993840063,-1500.0,0.00040371,5]
[358361500,1744993840072,-1500.0,0.00040371,5]
[358361501,1744993840081,-502.16109153,0.00040371,5]
[358361502,1744993840091,-1000.0,0.000404,7]
[358361503,1744993840100,-1000.0,0.000404,7]
[358361504,1744993840109,-1000.0,0.000404,7]
[358361505,1744993840119,-1000.0,0.000404,7]
[358361506,1744993840128,-1000.0,0.000404,7]
[358361507,1744993840137,-150.0,0.00040612,2]
[358361508,1744993840146,-1170.84495391,0.00040658,120]
[358361509,1744993840154,-1000.0,0.000408,7]
[358361510,1744993840162,-1000.0,0.000408,7]
[358361511,1744993840171,-1000.0,0.000408,7]
[358361512,1744993840180,-1000.0,0.000408,7]
[358361513,1744993840188,-1906.0,0.000408,7]
[358361514,1744993840197,-1000.0,0.000408,7]
[358361515,1744993840206,-1013.0,0.000408,7]
[358361516,1744993840214,-1000.0,0.000409,14]
[358361517,1744993840222,-2687.06072065,0.000409,16]
[358361518,1744993840231,-2687.06072054,0.000409,16]
[358361519,1744993840240,-2687.06072054,0.000409,16]
[358361520,1744993840249,-2687.06072054,0.000409,16]
[358361521,1744993840258,-2687.06072054,0.000409,16]
[358361522,1744993840268,-2687.06072054,0.000409,16]
[358361523,1744993840278,-2687.06072054,0.000409,16]
[358361524,1744993840287,-2687.06072054,0.000409,16]
[358361525,1744993840297,-2687.06072054,0.000409,16]
[358361526,1744993840306,-2687.06072054,0.000409,16]
[358361527,1744993840315,-25940.0,0.00041,2]
[358361528,1744993840323,-582.0,0.0004107,120]
[358361529,1744993840332,-582.0,0.0004108,120]
[358361530,1744993840340,-582.0,0.0004109,120]
[358361531,1744993840348,-150.0,0.00041096,10]
[358361532,1744993840356,-500.0,0.00041096,10]
[358361533,1744993840365,-3083.92,0.00041096,120]
[358361534,1744993840373,-486.33760479,0.000411,2]
[358361535,1744993840382,-2687.06072054,0.00041245,16]
[358361536,1744993840392,-1500.0,0.00041298,10]
[358361537,1744993840401,-150.0,0.00041579,2]
[358361538,1744993840410,-152.0,0.00041644,10]
[358361539,1744993840419,-502.58033711,0.00041644,10]
[358361540,1744993840427,-179.8,0.00041692,2]
[358361541,1744993840435,-1300.0,0.000418,15]
[358361542,1744993840445,-4427.0,0.00041841,5]
[358361543,1744993840454,-1700.0,0.000419,15]
[358361544,1744993840463,-2020.16458408,0.000419,2]
[358361545,1744993840472,-647.5445547,0.000419,15]
[358361546,1744993840481,-635.12175673,0.00041906,2]
[358361547,1744993840490,-582.0,0.00041969,120]
[358361548,1744993840501,-150.0,0.00041973,10]
[358361549,1744993840511,-582.0,0.00041979,120]
[358361550,1744993840520,-386.66972204,0.00041989,30]
[358361551,1744993840529,-582.0,0.00041989,120]
[358361552,1744993840538,-300.0,0.00041999,30]
[358361554,1744993840548,-500.0,0.00041999,30]
[358361556,1744993840557,-201.02857644,0.00041999,60]
[358361558,1744993840566,-1404.44671847,0.00041999,60]
[358361560,1744993840576,-2022.03398384,0.00041999,2]
[358361561,1744993840585,-140497.53615732,0.00042,2]
[358361563,1744993840600,-340569.66230341,0.00042,2]
[358361564,1744993840613,-1855.61830941,0.00042,2]
[358361565,1744993840624,-1660.7,0.00042,2]
[358361566,1744993840636,-430.04414323,0.00042,2]
[358361567,1744993840652,-426.09549,0.00042,2]
[358361568,1744993840824,-0.0098096,0.00042,2]
[358361600,1744993845810,-413.3896367,0.00042,7]
[358361601,1744993846043,-187.6103633,0.00042,7]
[358361602,1744993846052,-652.3896367,0.00042,2]
[358361603,1744993846062,-4651.19475177,0.00042,2]
[358361613,1744993902893,1113.54,0.00047964,60]
[358361627,1744994836110,-186.56159628,0.00021769,2]
[358361628,1744994836131,-726.00950019,0.00021868,2]
[358361629,1744994839082,-950.52704946,0.00021868,2]
[358361630,1744994847134,-1589.79000533,0.00021868,2]
[358361631,1744994847156,-250.0,0.00021869,2]
[358361632,1744994847176,-304.32,0.00021869,2]
[358361633,1744994847196,-203.77,0.00021869,2]
[358361634,1744994847216,-250.0,0.00023083,2]
[358361635,1744994847236,-250.0,0.00024055,2]
[358361636,1744994847257,-1000.0,0.00024658,2]
[358361637,1744994847277,-300.0,0.0002817,2]
[358361638,1744994847297,-6197.18027932,0.00028171,2]
[358361639,1744994851082,-5361.66500968,0.00028171,2]
[358361640,1744994853107,-180.41849603,0.00028171,2]
[358361652,1744995031882,-150.0,0.0002796,2]
[358361653,1744995031893,-157.38,0.000281,2]
[358361654,1744995031990,-92.62,0.000281,2]
[358361655,1744995032001,-300.0,0.0002817,2]
[358361656,1744995032011,-300.0,0.0002817,2]
[358361657,1744995032020,-300.0,0.0002817,2]
[358361658,1744995032030,-5378.4846849,0.00028171,2]
[358361659,1744995032042,-24070.69908323,0.00028171,2]
[358361660,1744995032052,-250.0,0.00029231,2]
[358361661,1744995032062,-250.0,0.00029768,2]
[358361662,1744995032072,-420.0,0.00030418,2]
[358361663,1744995032082,-420.0,0.00030787,2]
[358361664,1744995032091,-250.0,0.00030833,2]
[358361665,1744995032101,-175.25,0.00032621,2]
[358361666,1744995032111,-587.0,0.00032846,2]
[358361667,1744995032122,-587.0,0.00033646,3]
[358361668,1744995032132,-150.0,0.00034548,10]
[358361669,1744995032142,-159.72151797,0.00034667,5]
[358361670,1744995032152,-823.0,0.00035468,2]
[358361671,1744995032162,-212.44,0.00036401,120]
[358361672,1744995032172,-1000.0,0.00036439,2]
[358361673,1744995032181,-823.0,0.00036771,3]
[358361674,1744995032191,-172.2,0.00036891,2]
[358361675,1744995032200,-619.48,0.00036923,2]
[358361676,1744995032209,-26.37638497,0.00036967,2]
[358361679,1744995032225,-973.62361503,0.00036967,2]
[358361681,1744995032234,-164.7488312,0.00037798,2]
[358361683,1744995032244,-850.0,0.00037854,2]
[358361685,1744995032253,-1200.55066451,0.00037854,2]
[358361687,1744995032265,-1704.66837489,0.00037854,2]
[358361689,1744995032274,-5222.96663188,0.00037855,2]
[358361692,1744995032297,-443.42,0.00037855,2]
[358361695,1744995032308,-2713.21734341,0.00037855,2]
[358361700,1744995032323,-12393.61380567,0.00037855,2]
[358361702,1744995032338,-3341.37093081,0.00037855,2]
[358361705,1744995032349,-4614.66753364,0.00037855,2]
[358361728,1744995037986,-150.0,0.00036563,2]
[358361729,1744995037996,-180.25595446,0.00037855,2]
[358361730,1744995038039,-7742.60445773,0.00037855,2]
[358361731,1744995038051,-3214.6633424,0.00037855,2]
[358361732,1744995038061,-164.98,0.00037873,10]
[358361733,1744995038071,-2241.81,0.00037873,2]
[358361734,1744995038081,-150.99,0.00037873,30]
[358361735,1744995038091,-150.99,0.00037873,2]
[358361736,1744995038101,-58486.92666778,0.00037887,2]
[358361737,1744995038110,-2510.49,0.00037898,2]
[358361738,1744995038120,-418.48,0.00037898,2]